[Event "Azerbaijan Championship 2022"]
[Site "Nakhchivan"]
[Date "2022.02.11"]
[Round "7.10"]
[White "Eynullayev, Atilla"]
[Black "Bayramov, Elvin"]
[Result "1-0"]
[ECO "B84"]
[WhiteElo "2324"]
[BlackElo "2280"]
[Annotator "ChessBase"]
[PlyCount "69"]
[EventDate "2022.02.05"]
[EventCountry "AZE"]
[SourceTitle "playchess.com"]
[Source "ChessBase"]
[SourceQuality "1"]
[TimeControl "40/5400+30:1800+30"]

1. e4 {[%emt 0:00:04]} c5 {[%emt 0:00:43]} 2. Nf3 {[%emt 0:00:04]} d6 {[%emt 0:02:24]} 3. d4 {[%emt 0:00:24]} cxd4 {[%emt 0:00:04]} 4. Nxd4 {[%emt 0:00:03]} Nf6 {[%emt 0:00:04]} 5. Nc3 {[%emt 0:00:05]} a6 {[%emt 0:01:12]} 6. Be2 {[%emt 0:00:04]} e6 {[%emt 0:03:36]} 7. Be3 {[%emt 0:00:14]} Be7 {[%emt 0:10:47]} 8. g4 {[%emt 0:00:13]} Nc6 {[%emt 0:02:27]} 9. g5 {[%emt 0:01:31]} Nd7 {[%emt 0:02:48]} 10. h4 {[%emt 0:00:30]} Qc7 {[%emt 0:08:17]} 11. h5 {[%emt 0:04:58]} Nce5 {[%emt 0:03:43]} 12. f4 {[%emt 0:09:54]} Nc4 {[%emt 0:00:46]} 13. Bxc4 {[%emt 0:00:17]} Qxc4 {[%emt 0:00:04]} 14. Qd3 {[%emt 0:25:36]} Qxd3 {[%emt 0:10:02]} 15. cxd3 {[%emt 0:00:12]} Nc5 {[%emt 0:00:23]} 16. Ke2 {[%emt 0:05:30]} Bd7 {[%emt 0:04:30]} 17. Rac1 {[%emt 0:02:11]} b5 {[%emt 0:08:38]} 18. a3 {[%emt 0:09:07]} Na4 {[%emt 0:14:47]} 19. Nd1 {[%emt 0:02:22]} Rc8 {[%emt 0:08:22]} 20. Rxc8+ {[%emt 0:01:53]} Bxc8 {[%emt 0:00:01]} 21. Nc6 {[%emt 0:00:22]} Bf8 {[%emt 0:05:05]} 22. Bd4 {[%emt 0:00:44]} h6 {[%emt 0:01:30]} 23. g6 {[%emt 0:08:31]} f6 {[%emt 0:00:35]} 24. Ne3 {[%emt 0:14:05]} e5 {[%emt 0:02:57]} 25. Ba7 {[%emt 0:00:14]} exf4 {[%emt 0:07:35]} 26. Nd5 {[%emt 0:00:02]} Bb7 {[%emt 0:01:31]} 27. Nd4 {[%emt 0:01:10]} f3+ 28. Kxf3 {[%emt 0:00:37]} Nc5 {[%emt 0:01:00]} 29. Rc1 {[%emt 0:02:42]} Bxd5 {[%emt 0:00:33]} 30. exd5 {[%emt 0:00:02]} Kd7 {[%emt 0:00:01]} 31. Bb6 {[%emt 0:00:32]} f5 {[%emt 0:00:59]} 32. b4 {[%emt 0:00:36]} Nxd3 {[%emt 0:00:01]} 33. Rc7+ {[%emt 0:00:06]} Ke8 {[%emt 0:00:01]} 34. Nxf5 {[%emt 0:00:31]} Ne5+ {[%emt 0:00:28]} 35. Ke4 {[%emt 0:00:04]} 1-0

[Event "Azerbaijan Championship 2022"]
[Site "Nakhchivan"]
[Date "2022.02.12"]
[Round "8.8"]
[White "Talibov, Shiroghlan"]
[Black "Gasimov, Parviz"]
[Result "1-0"]
[ECO "D45"]
[WhiteElo "2307"]
[BlackElo "2379"]
[Annotator "ChessBase"]
[PlyCount "113"]
[EventDate "2022.02.05"]
[EventCountry "AZE"]
[SourceTitle "playchess.com"]
[Source "ChessBase"]
[SourceQuality "1"]
[TimeControl "40/5400+30:1800+30"]

1. d4 {[%emt 0:00:01]} d5 {[%emt 0:01:12]} 2. c4 {[%emt 0:00:32]} e6 {[%emt 0:01:25]} 3. Nf3 {[%emt 0:00:09]} Nf6 {[%emt 0:00:09]} 4. Nc3 {[%emt 0:00:05]} c6 {[%emt 0:02:20]} 5. e3 {[%emt 0:00:06]} Nbd7 {[%emt 0:00:06]} 6. Qc2 {[%emt 0:00:06]} Bd6 {[%emt 0:00:26]} 7. Bd3 {[%emt 0:00:05]} dxc4 {[%emt 0:00:49]} 8. Bxc4 {[%emt 0:00:06]} b5 {[%emt 0:00:04]} 9. Be2 {[%emt 0:00:03]} O-O {[%emt 0:03:23]} 10. O-O {[%emt 0:00:07]} Bb7 {[%emt 0:02:06]} 11. e4 {[%emt 0:00:11]} e5 {[%emt 0:02:09]} 12. dxe5 {[%emt 0:00:04]} Nxe5 {[%emt 0:00:05]} 13. Nh4 {[%emt 0:00:01]} g6 {[%emt 0:06:01]} 14. h3 {[%emt 0:00:37]} b4 {[%emt 0:18:19]} 15. Nb1 {[%emt 0:18:17]} c5 {[%emt 0:08:59]} 16. Nd2 {[%emt 0:00:07]} Nc6 {[%emt 0:04:44]} 17. Nhf3 {[%emt 0:06:40]} Qe7 {[%emt 0:02:40]} 18. b3 {[%emt 0:12:42]} Be5 {[%emt 0:04:28]} 19. Nxe5 {[%emt 0:11:32]} Nd4 {[%emt 0:05:28]} 20. Qd1 {[%emt 0:09:35]} Qxe5 {[%emt 0:01:20]} 21. Bc4 {[%emt 0:04:01]} Ne2+ {[%emt 0:06:51]} 22. Qxe2 {[%emt 0:00:30]} Qxa1 {[%emt 0:00:05]} 23. Nf3 {[%emt 0:00:19]} Nxe4 {[%emt 0:08:29]} 24. Bb2 {[%emt 0:00:27]} Qxa2 {[%emt 0:00:16]} 25. Ra1 {[%emt 0:00:16]} Nc3 {[%emt 0:00:22]} 26. Rxa2 {[%emt 0:09:00]} Nxe2+ {[%emt 0:00:08]} 27. Bxe2 {[%emt 0:00:01]} Bd5 {[%emt 0:03:30]} 28. Nd2 {[%emt 0:05:11]} Rfe8 {[%emt 0:02:28]} 29. Bb5 {[%emt 0:03:57]} Re1+ {[%emt 0:01:23]} 30. Kh2 {[%emt 0:00:06]} a5 {[%emt 0:04:26]} 31. Ra4 {[%emt 0:07:02]} Rd1 {[%emt 0:04:29]} 32. Nc4 {[%emt 0:01:05]} Rb1 {[%emt 0:00:44]} 33. Be5 {[%emt 0:01:38]} Ra7 {[%emt 0:03:21]} 34. Nxa5 {[%emt 0:01:59]} Rc1 {[%emt 0:03:44]} 35. Kg3 {[%emt 0:05:23]} f5 {[%emt 0:00:31]} 36. f3 {[%emt 0:01:43]} Kf7 {[%emt 0:00:32]} 37. h4 {[%emt 0:01:43]} Ke6 {[%emt 0:00:34]} 38. Bb8 {[%emt 0:03:04]} Ra8 {[%emt 0:00:17]} 39. Bf4 {[%emt 0:00:35]} Rc2 {[%emt 0:00:47]} 40. Ra1 {[%emt 0:00:00]} Kf6 {[%emt 0:00:00]} 41. Bc7 {[%emt 0:03:49]} Rc8 {[%emt 0:06:48]} 42. Bd6 {[%emt 0:05:48]} Ra8 {[%emt 0:08:40]} 43. Kf4 {[%emt 0:00:48]} Ke6 {[%emt 0:04:38]} 44. Bc7 {[%emt 0:01:10]} Rxg2 {[%emt 0:01:24]} 45. Re1+ {[%emt 0:00:20]} Kf6 {[%emt 0:01:26]} 46. Rd1 {[%emt 0:03:05]} Be6 {[%emt 0:02:17]} 47. Nb7 {[%emt 0:03:56]} Bxb3 {[%emt 0:04:48]} 48. Rd7 {[%emt 0:00:39]} Rc2 {[%emt 0:03:28]} 49. Be5+ {[%emt 0:03:20]} Ke6 {[%emt 0:00:02]} 50. Nd8+ {[%emt 0:00:34]} Rxd8 {[%emt 0:00:18]} 51. Rxd8 {[%emt 0:00:02]} c4 {[%emt 0:00:57]} 52. Bc6 {[%emt 0:01:42]} Ba2 {[%emt 0:01:33]} 53. Bd5+ {[%emt 0:04:16]} Ke7 {[%emt 0:00:01]} 54. Rb8 {[%emt 0:00:42]} b3 {[%emt 0:01:23]} 55. Rb7+ {[%emt 0:00:09]} Kd8 {[%emt 0:00:04]} 56. Be6 {[%emt 0:00:10]} b2 {[%emt 0:00:55]} 57. Bf6+ {[%emt 0:00:07]} 1-0

[Event "Azerbaijan Championship 2022"]
[Site "Nakhchivan"]
[Date "2022.02.12"]
[Round "8.9"]
[White "Bayramov, Elvin"]
[Black "Manafov, Vugar"]
[Result "0-1"]
[ECO "A13"]
[WhiteElo "2280"]
[BlackElo "2299"]
[Annotator "ChessBase"]
[PlyCount "84"]
[EventDate "2022.02.05"]
[EventCountry "AZE"]
[SourceTitle "playchess.com"]
[Source "ChessBase"]
[SourceQuality "1"]
[TimeControl "40/5400+30:1800+30"]

1. Nf3 {[%emt 0:00:04]} Nf6 {[%emt 0:00:06]} 2. c4 {[%emt 0:00:07]} e6 {[%emt 0:00:06]} 3. g3 {[%emt 0:00:03]} d5 {[%emt 0:00:03]} 4. Bg2 {[%emt 0:00:04]} dxc4 {[%emt 0:00:27]} 5. Qa4+ {[%emt 0:00:49]} Nbd7 {[%emt 0:00:09]} 6. O-O {[%emt 0:00:33]} a6 {[%emt 0:00:22]} 7. Qxc4 {[%emt 0:00:34]} c5 {[%emt 0:00:08]} 8. a4 {[%emt 0:01:04]} b6 {[%emt 0:00:29]} 9. Ng5 {[%emt 0:01:03]} Rb8 {[%emt 0:05:50]} 10. d4 {[%emt 0:00:35]} h6 {[%emt 0:02:11]} 11. Ne4 {[%emt 0:04:58]} b5 {[%emt 0:09:24]} 12. axb5 {[%emt 0:01:12]} axb5 {[%emt 0:00:06]} 13. Qd3 {[%emt 0:03:32]} c4 {[%emt 0:00:27]} 14. Qc2 {[%emt 0:00:21]} Nxe4 {[%emt 0:00:40]} 15. Bxe4 {[%emt 0:00:13]} Bd6 {[%emt 0:00:33]} 16. Nc3 {[%emt 0:02:01]} b4 {[%emt 0:05:14]} 17. Na4 {[%emt 0:00:59]} Qc7 {[%emt 0:00:31]} 18. Nc5 {[%emt 0:00:21]} Nxc5 {[%emt 0:00:25]} 19. dxc5 {[%emt 0:00:05]} Bxc5 {[%emt 0:00:05]} 20. Kg2 {[%emt 0:02:42]} Bd4 {[%emt 0:00:37]} 21. Rd1 {[%emt 0:01:14]} b3 {[%emt 0:01:51]} 22. Qd2 {[%emt 0:03:16]} Bf6 {[%emt 0:00:06]} 23. Qf4 {[%emt 0:01:02]} Be5 {[%emt 0:00:41]} 24. Qh4 {[%emt 0:08:28]} O-O {[%emt 0:04:39]} 25. Ra4 {[%emt 0:09:06]} Bb7 {[%emt 0:04:46]} 26. f3 {[%emt 0:00:17]} Bxe4 {[%emt 0:04:34]} 27. Qxe4 {[%emt 0:00:12]} Rfc8 {[%emt 0:00:05]} 28. Rxc4 {[%emt 0:01:57]} Qxc4 {[%emt 0:00:14]} 29. Rd8+ {[%emt 0:00:05]} Rxd8 {[%emt 0:00:02]} 30. Qxc4 {[%emt 0:00:05]} Rbc8 {[%emt 0:03:02]} 31. Qe4 {[%emt 0:02:32]} Bf6 {[%emt 0:00:38]} 32. Bf4 {[%emt 0:01:49]} Bxb2 {[%emt 0:00:21]} 33. Qb7 {[%emt 0:00:19]} e5 {[%emt 0:00:19]} 34. Qxb3 {[%emt 0:03:16]} Rb8 {[%emt 0:00:06]} 35. Qc2 {[%emt 0:00:07]} exf4 {[%emt 0:00:04]} 36. gxf4 {[%emt 0:00:03]} Bf6 {[%emt 0:01:14]} 37. Kg3 {[%emt 0:00:14]} Rb2 {[%emt 0:01:16]} 38. Qc4 {[%emt 0:01:17]} Rdd2 {[%emt 0:00:23]} 39. Qc8+ {[%emt 0:00:10]} Rd8 {[%emt 0:00:05]} 40. Qc4 {[%emt 0:00:00]} g6 {[%emt 0:00:00]} 41. f5 {[%emt 0:00:39]} g5 {[%emt 0:00:42]} 42. Qc6 {[%emt 0:01:22]} Kg7 {[%emt 0:00:10]} 0-1

[Event "Azerbaijan Championship 2022"]
[Site "Nakhchivan"]
[Date "2022.02.12"]
[Round "8.10"]
[White "Bayramov, Zaur"]
[Black "Mustafayev, Farid"]
[Result "0-1"]
[ECO "A15"]
[WhiteElo "2357"]
[BlackElo "2322"]
[Annotator "ChessBase"]
[PlyCount "112"]
[EventDate "2022.02.05"]
[EventCountry "AZE"]
[SourceTitle "playchess.com"]
[Source "ChessBase"]
[SourceQuality "1"]
[TimeControl "40/5400+30:1800+30"]

1. c4 Nf6 2. Nf3 d6 3. Nc3 Bf5 4. d3 e5 5. g3 Qc8 6. Bg2 Bh3 7. O-O Bxg2 8. Kxg2 Be7 9. d4 Nbd7 10. e4 O-O 11. c5 Re8 12. cxd6 Bxd6 13. dxe5 Nxe5 14. Nd4 Bb4 15. Qc2 Bxc3 16. bxc3 c5 17. Nf5 Qc6 18. f3 g6 19. Nh4 Rad8 20. Bg5 Rd3 21. Rae1 Red8 22. Re2 Kg7 23. Qc1 Re8 24. Rd1 c4 25. Rf1 Nfd7 26. Be3 f6 27. Bd4 Kg8 28. h3 a5 29. Qa3 b6 30. Kh2 g5 31. Nf5 Rxf3 32. Ref2 Rxf2+ 33. Rxf2 Qxe4 34. Nd6 Nf3+ 35. Rxf3 Qxf3 36. Nxe8 Qe2+ 37. Kg1 Qxe8 38. Qd6 Kf7 39. g4 Qe6 40. Qc7 Kg6 41. Qc8 h5 42. Kf2 b5 43. a3 hxg4 44. hxg4 Qxg4 45. Qg8+ Kf5 46. Qd5+ Ne5 47. Qxb5 Qf3+ 48. Ke1 Kf4 49. Kd2 Qg2+ 50. Kc1 Nd3+ 51. Kb1 Qf1+ 52. Ka2 Qe2+ 53. Kb1 Qd1+ 54. Ka2 Qc2+ 55. Ka1 Nc1 56. Qb8+ Kg4 0-1

[Event "Azerbaijan Championship 2022"]
[Site "Nakhchivan"]
[Date "2022.02.12"]
[Round "8.12"]
[White "Babayev, Talib"]
[Black "Sevdimaliyev, Urfan"]
[Result "0-1"]
[ECO "B38"]
[WhiteElo "2256"]
[BlackElo "2359"]
[Annotator "ChessBase"]
[PlyCount "96"]
[EventDate "2022.02.05"]
[EventCountry "AZE"]
[SourceTitle "playchess.com"]
[Source "ChessBase"]
[SourceQuality "1"]
[TimeControl "40/5400+30:1800+30"]

1. e4 {[%emt 0:00:03]} c5 {[%emt 0:02:21]} 2. Nf3 {[%emt 0:00:08]} Nc6 {[%emt 0:00:12]} 3. d4 {[%emt 0:00:07]} cxd4 {[%emt 0:00:04]} 4. Nxd4 {[%emt 0:00:05]} g6 {[%emt 0:00:19]} 5. c4 {[%emt 0:00:07]} Bg7 {[%emt 0:00:16]} 6. Be3 {[%emt 0:00:13]} Nf6 {[%emt 0:00:26]} 7. Nc3 {[%emt 0:00:07]} O-O {[%emt 0:00:33]} 8. Be2 {[%emt 0:00:35]} d6 {[%emt 0:00:19]} 9. O-O {[%emt 0:00:32]} Bd7 {[%emt 0:00:22]} 10. Qd2 {[%emt 0:00:33]} Nxd4 {[%emt 0:00:17]} 11. Bxd4 {[%emt 0:00:06]} Bc6 {[%emt 0:00:04]} 12. Bd3 {[%emt 0:00:08]} a5 {[%emt 0:03:23]} 13. b3 {[%emt 0:01:24]} Nd7 {[%emt 0:02:09]} 14. Bxg7 {[%emt 0:00:13]} Kxg7 {[%emt 0:00:04]} 15. Rae1 {[%emt 0:00:53]} Qb6 {[%emt 0:10:59]} 16. Re3 {[%emt 0:03:31]} Qd4 {[%emt 0:11:59]} 17. Rh3 {[%emt 0:06:44]} h5 {[%emt 0:02:12]} 18. Ne2 {[%emt 0:04:28]} Qc5 {[%emt 0:14:05]} 19. Kh1 {[%emt 0:18:17]} Nf6 {[%emt 0:03:46]} 20. f3 {[%emt 0:08:30]} b5 {[%emt 0:13:02]} 21. Rg3 {[%emt 0:06:33]} bxc4 {[%emt 0:02:01]} 22. Bxc4 {[%emt 0:00:19]} Rfd8 {[%emt 0:04:47]} 23. Nd4 {[%emt 0:04:20]} Bd7 {[%emt 0:03:06]} 24. Re1 {[%emt 0:08:45]} e5 {[%emt 0:10:38]} 25. Nf5+ {[%emt 0:05:39]} Bxf5 {[%emt 0:00:04]} 26. exf5 {[%emt 0:00:06]} Qb4 {[%emt 0:01:17]} 27. Qc1 {[%emt 0:11:19]} d5 {[%emt 0:02:15]} 28. a3 {[%emt 0:00:06]} Qc5 {[%emt 0:03:46]} 29. Bd3 {[%emt 0:06:40]} Qxc1 {[%emt 0:00:51]} 30. Rxc1 {[%emt 0:00:04]} h4 {[%emt 0:00:59]} 31. Rh3 {[%emt 0:00:14]} Rac8 {[%emt 0:00:59]} 32. Rd1 {[%emt 0:02:23]} g5 {[%emt 0:01:42]} 33. f4 {[%emt 0:02:55]} exf4 {[%emt 0:01:51]} 34. Rf3 {[%emt 0:00:26]} Rc3 {[%emt 0:00:37]} 35. Bb1 {[%emt 0:00:30]} Rdc8 {[%emt 0:00:58]} 36. a4 {[%emt 0:06:18]} Rc1 {[%emt 0:01:00]} 37. Rff1 {[%emt 0:00:31]} Rxd1 {[%emt 0:00:27]} 38. Rxd1 {[%emt 0:00:05]} Ng4 {[%emt 0:00:52]} 39. Kg1 {[%emt 0:00:40]} Ne3 {[%emt 0:00:40]} 40. Re1 {[%emt 0:00:00]} Rc3 {[%emt 0:00:00]} 41. g3 {[%emt 0:04:26]} hxg3 {[%emt 0:05:03]} 42. hxg3 {[%emt 0:00:21]} fxg3 {[%emt 0:00:08]} 43. b4 {[%emt 0:03:40]} axb4 {[%emt 0:00:47]} 44. a5 {[%emt 0:00:04]} d4 {[%emt 0:00:38]} 45. a6 {[%emt 0:00:26]} Ra3 {[%emt 0:00:12]} 46. Bd3 {[%emt 0:00:06]} Rxd3 {[%emt 0:01:38]} 47. Ra1 {[%emt 0:00:14]} b3 {[%emt 0:02:53]} 48. f6+ {[%emt 0:01:19]} Kg6 {[%emt 0:00:47]} 0-1

[Event "Azerbaijan Championship 2022"]
[Site "Nakhchivan"]
[Date "2022.02.13"]
[Round "9.7"]
[White "Hasanzade, Toghrul"]
[Black "Ilyasli, Ughur"]
[Result "0-1"]
[ECO "B90"]
[WhiteElo "2292"]
[BlackElo "2310"]
[Annotator "NA"]
[PlyCount "80"]
[EventDate "2022.02.05"]
[EventCountry "AZE"]
[SourceTitle "playchess.com"]
[Source "ChessBase"]
[SourceQuality "1"]
[TimeControl "40/5400+30:1800+30"]

1. e4 {[%emt 0:00:03]} c5 {[%emt 0:01:40]} 2. Nf3 {[%emt 0:00:21]} d6 {[%emt 0:00:24]} 3. d4 {[%emt 0:00:08]} cxd4 {[%emt 0:00:03]} 4. Nxd4 {[%emt 0:00:04]} Nf6 {[%emt 0:00:07]} 5. Nc3 {[%emt 0:00:04]} a6 {[%emt 0:00:06]} 6. h3 {[%emt 0:00:37]} e5 {[%emt 0:03:24]} 7. Nde2 {[%emt 0:00:13]} h5 {[%emt 0:04:42]} 8. Bg5 {[%emt 0:00:15]} Be7 {[%emt 0:01:08]} 9. Bxf6 {[%emt 0:00:12]} Bxf6 {[%emt 0:00:07]} 10. Nd5 {[%emt 0:00:08]} Bg5 {[%emt 0:01:34]} 11. h4 {[%emt 0:08:59]} Bh6 {[%emt 0:02:11]} 12. Qd3 {[%emt 0:03:47]} Nc6 {[%emt 0:01:02]} 13. g3 {[%emt 0:00:56]} Be6 {[%emt 0:10:46]} 14. f4 $15 {[%emt 0:08:12]} Rc8 {[%emt 0:10:08]} 15. c3 {[%emt 0:09:00]} Ne7 {[%emt 0:12:52]} 16. Bh3 {[%emt 0:19:49]} Bxh3 {[%emt 0:01:38]} 17. Rxh3 {[%emt 0:00:53]} Nxd5 {[%emt 0:00:11]} 18. Qxd5 {[%emt 0:00:39]} Qd7 {[%emt 0:03:56]} 19. Rh1 {[%emt 0:02:06]} Rc5 {[%emt 0:01:07]} 20. Qd3 {[%emt 0:01:21]} Qc6 {[%emt 0:01:03]} 21. Rd1 {[%emt 0:12:52]} O-O {[%emt 0:02:56]} 22. f5 {[%emt 0:08:05]} Rc4 {[%emt 0:00:14]} 23. Qxd6 {[%emt 0:07:05]} Qxe4 {[%emt 0:03:30]} 24. Rf1 {[%emt 0:00:38]} Ra4 {[%emt 0:08:07]} 25. Qd5 {[%emt 0:12:56]} Qxd5 {[%emt 0:01:02]} 26. Rxd5 {[%emt 0:00:01]} Rxa2 {[%emt 0:00:00]} 27. Rxe5 {[%emt 0:00:16]} Rxb2 {[%emt 0:00:19]} 28. Kf2 {[%emt 0:00:36]} Rd8 {[%emt 0:00:59]} 29. Ra1 {[%emt 0:01:14]} f6 {[%emt 0:00:19]} 30. Re4 {[%emt 0:00:44]} Rd5 {[%emt 0:00:05]} 31. Raa4 {[%emt 0:00:57]} Rxf5+ {[%emt 0:00:09]} 32. Kg2 {[%emt 0:00:03]} Rd5 {[%emt 0:01:00]} 33. Rac4 {[%emt 0:00:38]} Rdd2 {[%emt 0:01:46]} 34. Kf3 {[%emt 0:00:32]} Rd3+ {[%emt 0:01:50]} 35. Kf2 {[%emt 0:00:01]} a5 {[%emt 0:01:17]} 36. Re7 {[%emt 0:02:51]} b5 {[%emt 0:00:24]} 37. Rc8+ {[%emt 0:00:14]} Kh7 {[%emt 0:00:05]} 38. g4 {[%emt 0:00:25]} hxg4 {[%emt 0:00:15]} 39. h5 {[%emt 0:00:15]} Rf3+ {[%emt 0:00:13]} 40. Kg2 {[%emt 0:00:00]} Be3 {[%emt 0:00:00]} 0-1

[Event "Azerbaijan Championship 2022"]
[Site "Nakhchivan"]
[Date "2022.02.13"]
[Round "9.9"]
[White "Gasimov, Parviz"]
[Black "Bayramov, Zaur"]
[Result "1/2-1/2"]
[ECO "B53"]
[WhiteElo "2379"]
[BlackElo "2357"]
[Annotator "ChessBase"]
[PlyCount "113"]
[EventDate "2022.02.05"]
[EventCountry "AZE"]
[SourceTitle "playchess.com"]
[Source "ChessBase"]
[SourceQuality "1"]
[TimeControl "40/5400+30:1800+30"]

1. e4 {[%emt 0:00:03]} c5 {[%emt 0:00:04]} 2. Nf3 {[%emt 0:00:11]} d6 {[%emt 0:00:05]} 3. d4 {[%emt 0:04:10]} cxd4 {[%emt 0:00:06]} 4. Qxd4 {[%emt 0:00:34]} a6 {[%emt 0:00:13]} 5. h3 {[%emt 0:00:06]} Nc6 {[%emt 0:00:21]} 6. Qe3 {[%emt 0:00:07]} Nf6 {[%emt 0:00:31]} 7. c4 {[%emt 0:01:25]} g6 {[%emt 0:00:42]} 8. Be2 {[%emt 0:01:47]} Bg7 {[%emt 0:00:14]} 9. O-O {[%emt 0:00:11]} O-O {[%emt 0:00:06]} 10. Nc3 {[%emt 0:00:52]} Rb8 {[%emt 0:01:56]} 11. Rd1 {[%emt 0:03:26]} Qc7 {[%emt 0:02:16]} 12. Bd2 {[%emt 0:04:42]} Nd7 {[%emt 0:04:47]} 13. Nd5 {[%emt 0:06:56]} Qd8 {[%emt 0:00:11]} 14. Bc3 {[%emt 0:01:41]} Bxc3 {[%emt 0:04:58]} 15. Nxc3 {[%emt 0:09:25]} b6 {[%emt 0:05:09]} 16. Nd5 {[%emt 0:10:15]} f6 {[%emt 0:03:46]} 17. Nd4 {[%emt 0:04:57]} Nxd4 {[%emt 0:01:31]} 18. Qxd4 {[%emt 0:00:32]} Bb7 {[%emt 0:03:08]} 19. b4 {[%emt 0:08:12]} a5 {[%emt 0:03:36]} 20. a3 {[%emt 0:01:19]} axb4 {[%emt 0:18:49]} 21. axb4 {[%emt 0:00:10]} Ra8 {[%emt 0:02:05]} 22. Rxa8 {[%emt 0:10:06]} Bxa8 {[%emt 0:00:08]} 23. Bg4 {[%emt 0:06:55]} Ne5 {[%emt 0:10:40]} 24. Be6+ {[%emt 0:03:22]} Kg7 {[%emt 0:00:35]} 25. f4 {[%emt 0:02:49]} Nc6 {[%emt 0:00:51]} 26. Qe3 {[%emt 0:01:08]} Qb8 {[%emt 0:05:18]} 27. Nxb6 {[%emt 0:04:44]} Qa7 {[%emt 0:05:22]} 28. b5 {[%emt 0:01:35]} Na5 {[%emt 0:05:23]} 29. c5 {[%emt 0:01:30]} dxc5 {[%emt 0:00:26]} 30. Nd7 {[%emt 0:02:56]} Rd8 {[%emt 0:00:34]} 31. Ra1 {[%emt 0:00:47]} Qc7 {[%emt 0:02:21]} 32. b6 {[%emt 0:04:18]} Qd6 {[%emt 0:01:34]} 33. f5 {[%emt 0:01:04]} Rxd7 {[%emt 0:08:30]} 34. Bxd7 {[%emt 0:01:32]} Nc4 {[%emt 0:00:16]} 35. Qe1 {[%emt 0:03:20]} Nxb6 {[%emt 0:01:55]} 36. Rd1 {[%emt 0:00:45]} Qe5 {[%emt 0:00:35]} 37. Be6 {[%emt 0:00:06]} g5 {[%emt 0:08:00]} 38. Rd8 {[%emt 0:00:27]} Bxe4 {[%emt 0:00:41]} 39. Qe2 {[%emt 0:00:48]} Qa1+ {[%emt 0:01:34]} 40. Rd1 {[%emt 0:00:00]} Qe5 {[%emt 0:00:00]} 41. Re1 {[%emt 0:10:19]} Qd4+ {[%emt 0:01:39]} 42. Kh1 {[%emt 0:05:38]} Bd3 {[%emt 0:02:06]} 43. Qh5 {[%emt 0:04:01]} Qf2 {[%emt 0:01:06]} 44. Rg1 {[%emt 0:00:21]} Be4 {[%emt 0:02:52]} 45. Qe8 {[%emt 0:05:51]} Bxg2+ {[%emt 0:04:19]} 46. Rxg2 {[%emt 0:00:07]} Qe1+ {[%emt 0:00:18]} 47. Kh2 {[%emt 0:03:59]} Qe5+ {[%emt 0:00:09]} 48. Rg3 {[%emt 0:00:25]} Qe2+ {[%emt 0:00:16]} 49. Kh1 {[%emt 0:00:11]} Qf1+ {[%emt 0:00:28]} 50. Kh2 {[%emt 0:00:03]} Qe2+ {[%emt 0:00:06]} 51. Rg2 {[%emt 0:01:04]} Qe5+ {[%emt 0:00:07]} 52. Kh1 {[%emt 0:00:53]} Qe1+ {[%emt 0:00:13]} 53. Rg1 {[%emt 0:00:04]} Qe4+ {[%emt 0:00:15]} 54. Kh2 {[%emt 0:00:04]} Qe2+ {[%emt 0:00:21]} 55. Kg3 {[%emt 0:01:04]} Qe3+ {[%emt 0:00:18]} 56. Kh2 {[%emt 0:00:07]} Qe2+ {[%emt 0:00:07]} 57. Rg2 {[%emt 0:01:37]} 1/2-1/2

[Event "Azerbaijan Championship 2022"]
[Site "Nakhchivan"]
[Date "2022.02.13"]
[Round "9.11"]
[White "Atakishiyev, Elmar"]
[Black "Eynullayev, Atilla"]
[Result "0-1"]
[ECO "E06"]
[WhiteElo "2240"]
[BlackElo "2324"]
[Annotator "ChessBase"]
[PlyCount "113"]
[EventDate "2022.02.05"]
[EventCountry "AZE"]
[SourceTitle "playchess.com"]
[Source "ChessBase"]
[SourceQuality "1"]
[TimeControl "40/5400+30:1800+30"]

1. d4 {[%emt 0:00:01]} Nf6 {[%emt 0:00:05]} 2. c4 {[%emt 0:00:05]} e6 {[%emt 0:00:05]} 3. g3 {[%emt 0:00:05]} d5 {[%emt 0:00:04]} 4. Nf3 {[%emt 0:00:10]} Be7 {[%emt 0:00:09]} 5. Bg2 {[%emt 0:00:11]} O-O {[%emt 0:00:06]} 6. O-O {[%emt 0:00:56]} dxc4 {[%emt 0:00:05]} 7. Qa4 {[%emt 0:00:07]} a6 {[%emt 0:00:18]} 8. Qxc4 {[%emt 0:00:08]} b5 {[%emt 0:00:05]} 9. Qc2 {[%emt 0:00:03]} Bb7 {[%emt 0:00:04]} 10. Bd2 {[%emt 0:00:08]} Be4 {[%emt 0:00:05]} 11. Qc1 {[%emt 0:00:17]} c6 {[%emt 0:00:08]} 12. a4 {[%emt 0:00:38]} Nbd7 {[%emt 0:00:05]} 13. Bf4 {[%emt 0:07:46]} Rc8 {[%emt 0:04:53]} 14. Nbd2 {[%emt 0:00:38]} Bd5 {[%emt 0:00:25]} 15. axb5 {[%emt 0:08:22]} axb5 {[%emt 0:02:17]} 16. Qb1 {[%emt 0:15:19]} c5 {[%emt 0:01:23]} 17. e4 {[%emt 0:07:50]} Bb7 {[%emt 0:05:52]} 18. e5 {[%emt 0:08:33]} Nd5 {[%emt 0:00:41]} 19. Ne4 {[%emt 0:05:55]} Nxf4 {[%emt 0:08:00]} 20. gxf4 {[%emt 0:00:10]} h6 {[%emt 0:09:02]} 21. Ra7 {[%emt 0:12:47]} Bd5 {[%emt 0:05:56]} 22. Rd1 {[%emt 0:05:23]} Ra8 {[%emt 0:03:55]} 23. Rxa8 {[%emt 0:02:57]} Qxa8 {[%emt 0:00:23]} 24. Ne1 {[%emt 0:02:11]} c4 {[%emt 0:07:10]} 25. Ng3 {[%emt 0:02:12]} g6 {[%emt 0:05:03]} 26. Qc2 {[%emt 0:03:02]} Rc8 {[%emt 0:10:54]} 27. Bxd5 {[%emt 0:07:22]} Qxd5 {[%emt 0:00:12]} 28. Ng2 {[%emt 0:00:04]} Qf3 {[%emt 0:05:38]} 29. Re1 {[%emt 0:06:33]} Nb6 {[%emt 0:02:17]} 30. Re3 {[%emt 0:00:37]} Qa8 {[%emt 0:01:46]} 31. f5 {[%emt 0:00:51]} Nd5 {[%emt 0:15:46]} 32. fxg6 {[%emt 0:01:32]} Nxe3 {[%emt 0:00:05]} 33. gxf7+ {[%emt 0:00:11]} Kxf7 {[%emt 0:00:07]} 34. Nxe3 {[%emt 0:02:56]} Kg7 {[%emt 0:05:00]} 35. d5 {[%emt 0:00:40]} Bc5 {[%emt 0:03:38]} 36. Ng4 {[%emt 0:01:14]} Qxd5 {[%emt 0:02:02]} 37. Nf6 {[%emt 0:00:12]} Qd3 {[%emt 0:01:26]} 38. Qc1 {[%emt 0:00:22]} Qf3 {[%emt 0:01:23]} 39. Qc2 {[%emt 0:00:43]} Qxf2+ {[%emt 0:00:28]} 40. Qxf2 {[%emt 0:00:00]} Bxf2+ {[%emt 0:00:00]} 41. Kxf2 {[%emt 0:00:04]} Ra8 {[%emt 0:04:40]} 42. Ne2 {[%emt 0:04:04]} Ra2 {[%emt 0:01:15]} 43. Ne8+ {[%emt 0:00:25]} Kf8 {[%emt 0:09:31]} 44. Nc7 {[%emt 0:08:47]} Rxb2 {[%emt 0:00:45]} 45. Nxe6+ {[%emt 0:00:05]} Ke7 {[%emt 0:00:05]} 46. N6d4 {[%emt 0:00:34]} b4 {[%emt 0:00:23]} 47. Ke3 {[%emt 0:00:10]} b3 {[%emt 0:02:13]} 48. e6 {[%emt 0:07:34]} Ra2 {[%emt 0:02:36]} 49. Nc3 {[%emt 0:01:25]} b2 {[%emt 0:00:55]} 50. Ke4 {[%emt 0:02:00]} Ra3 {[%emt 0:05:49]} 51. Nde2 {[%emt 0:04:06]} Ra1 {[%emt 0:00:20]} 52. Kd5 {[%emt 0:00:45]} b1=Q {[%emt 0:00:37]} 53. Nxb1 {[%emt 0:00:05]} Rxb1 {[%emt 0:00:06]} 54. Kxc4 {[%emt 0:02:45]} Kxe6 {[%emt 0:00:11]} 55. h3 {[%emt 0:00:52]} Ke5 {[%emt 0:00:42]} 56. Kd3 {[%emt 0:00:29]} Rb3+ {[%emt 0:00:17]} 57. Nc3 {[%emt 0:00:06]} 0-1